bitfinex/quotes_SOLUSD_20240612
["timestamp","ask_amount","ask_price","bid_price","bid_amount"]
[1718174871318,0.51,151.1,151.06,8.4]
[1718174871525,0.51,151.1,151.07,2.4491]
[1718174873741,0.51,151.1,151.06,10.8493]
[1718174874547,2.9587,151.1,151.06,10.8493]
[1718174875532,0.51,151.1,151.06,10.8493]
[1718174876353,0.51,151.1,151.07,2.4491]
[1718174878154,0.51,151.1,151.06,10.8492]
[1718174878552,0.17,151.08,151.05,2.4495]
[1718174878758,0.51,151.08,151.05,10.8495]
[1718174880357,0.51,151.08,151.03,9.7993]
[1718174880358,0.17,151.09,151.06,8.4]
[1718174880561,2.6186,151.11,151.07,2.4491]
[1718174880764,0.17,151.09,151.07,2.4491]
[1718174881337,0.17,151.09,151.06,10.8492]
[1718174881866,0.17,151.09,151.06,2.4492]
[1718174882362,0.17,151.09,151.06,10.8492]
[1718174882867,0.17,151.09,151.07,2.4491]
[1718174883383,23.6126,151.12,151.07,2.4491]
[1718174883384,39.8389,151.15,151.07,8.4]
[1718174883539,12.248,151.18,151.11,8.4]
[1718174883738,15.083,151.19,151.06,6.468]
[1718174883939,2.4475,151.18,151.14,2.448]
[1718174884343,2.4476,151.17,151.13,10.8481]
[1718174884561,2.4481,151.14,151.1,2.4487]
[1718174884859,2.4479,151.15,151.11,2.4485]
[1718174885159,2.4478,151.16,151.11,10.8485]
[1718174885364,3.1279,151.15,151.11,10.8485]
[1718174885665,0.68,151.15,151.11,8.4]
[1718174885864,0.68,151.15,151.1,2.4486]
[1718174886165,0.68,151.15,151.1,10.8486]
[1718174886345,3.1279,151.15,151.11,10.8485]
[1718174886547,0.17,151.13,151.1,2.4486]
[1718174886758,0.68,151.15,151.11,2.4484]
[1718174886966,0.68,151.15,151.12,2.4483]
[1718174887464,0.68,151.15,151.11,10.8484]
[1718174887659,3.1279,151.15,151.11,10.8484]
[1718174888154,0.68,151.15,151.11,10.8484]
[1718174888358,0.68,151.15,151.12,2.4483]
[1718174888585,0.68,151.15,151.11,10.8484]
[1718174889453,0.68,151.15,151.11,2.4484]
[1718174889770,3.1279,151.15,151.11,2.4484]
[1718174890851,0.68,151.15,151.12,2.4483]
[1718174893567,0.68,151.15,151.1,2.4485]
[1718174893749,0.17,151.13,151.11,2.4485]
[1718174893950,0.68,151.13,151.11,2.4485]
[1718174894150,0.34,151.13,151.11,2.4485]
[1718174894553,2.4486,151.11,151.07,2.449]
[1718174894780,3.1288,151.1,151.06,2.4492]
[1718174894955,0.17,151.08,151.05,2.4494]
[1718174895159,0.34,151.08,151.05,2.4494]
[1718174895461,0.17,151.07,151.04,2.4496]
[1718174895769,0.17,151.07,151.03,2.4497]
[1718174895973,0.51,151.07,151.04,2.4496]
[1718174896361,0.17,151.06,151.04,2.4496]
[1718174896558,0.34,151.06,151.04,2.4496]
[1718174898372,0.34,151.07,151.04,2.4496]
[1718174898373,10.8489,151.09,151.08,8.54343518]
[1718174900575,11.5289,151.09,151.08,8.54343518]
[1718174903605,31.3889,151.09,151.08,8.54343518]
[1718174903883,88.6332,151.09,151.08,1e-08]
[1718174906670,120.6067,151.09,151.08,1e-08]
[1718174908613,120.6067,151.09,151.01,0.8573684]
[1718174908614,2.62,151.02,151.01,0.8573684]
[1718174908902,22.82,151.02,151.01,0.8573684]
[1718174909213,31.39,151.02,151.01,0.8573684]
[1718174911796,0.68,151.02,151.01,0.8573684]
[1718174911997,9.08,151.02,151.01,0.8573684]
[1718174912382,0.68,151.02,151.01,0.8573684]
[1718174913207,9.08,151.02,151.01,0.8573684]
[1718174913418,11.53,151.02,151.01,0.8573684]
[1718174915386,9.08,151.02,151.01,0.8573684]
[1718174915587,11.53,151.02,151.01,0.8573684]
[1718174915909,21.33,151.02,151.01,0.8573684]
[1718174916138,11.53,151.02,151.01,0.8573684]
[1718174917492,46.09,151.02,151.01,0.8573684]
[1718174917706,98.44,151.02,151.01,0.8573684]
[1718174918011,91.09,151.02,151.01,0.8573684]
[1718174918593,27.89,151.02,151.01,0.8573684]
[1718174918904,31.39,151.02,151.01,0.8573684]
[1718174920900,36.29,151.02,151.01,0.8573684]
[1718174921101,88.64,151.02,151.01,0.8573684]
[1718174921506,24.7608,151.0,150.9,22.6475]
[1718174921815,24.7608,151.0,150.94,10.8511]
[1718174921816,0.17,150.97,150.94,10.8511]
[1718174922001,0.51,150.97,150.95,2.4511]
[1718174922202,2.6206,150.98,150.94,2.4512]
[1718174922404,2.6206,150.98,150.93,2.4513]
[1718174922405,2.9608,150.97,150.93,2.4513]
[1718174922729,0.51,150.96,150.94,2.4513]
[1718174923020,8.91,150.96,150.93,2.4514]
[1718174923227,0.51,150.96,150.93,2.4514]
[1718174923424,0.51,150.96,150.94,8.4]
[1718174923646,0.51,150.96,150.92,10.8516]
[1718174923647,2.961,150.96,150.92,10.8516]
[1718174923806,0.17,150.95,150.93,2.4514]
[1718174925523,0.51,150.96,150.93,2.4514]
[1718174926124,0.51,150.96,150.93,10.8514]
[1718174927328,0.51,150.96,150.94,2.4512]
[1718174927632,0.51,150.96,150.93,10.8513]
[1718174930311,0.17,150.96,150.93,10.8513]
[1718174930518,0.17,150.97,150.94,2.4512]
[1718174930718,0.51,150.97,150.94,10.8512]
[1718174931635,57.6331,151.03,150.92,7.3548]
[1718174931845,57.6331,151.03,150.98,10.8505]
[1718174931846,2.45,151.02,150.98,10.8505]
[1718174932142,2.4502,151.01,150.97,10.8507]
[1718174932314,2.4502,151.01,150.97,2.4507]
[1718174932637,2.4503,151.0,150.96,10.8508]
[1718174933022,2.6205,150.99,150.95,9.0159]
[1718174933228,2.6205,150.99,150.95,17.4159]
[1718174933421,2.6205,150.99,150.96,2.4509]
[1718174933615,0.34,150.98,150.94,2.4512]
[1718174933942,0.17,150.98,150.95,2.4511]
[1718174934119,2.6205,150.99,150.95,10.851]
[1718174935239,0.17,150.99,150.96,2.4509]
[1718174935422,0.34,150.99,150.96,2.4509]
[1718174935619,17.1487,151.04,150.96,8.4]
[1718174935620,24.7594,151.04,150.96,8.4]
[1718174935838,2.4501,151.02,150.98,2.4504]
[1718174936018,26.5736,151.03,150.99,2.4504]
[1718174936714,2.45,151.02,150.99,2.4504]
[1718174936915,0.34,151.01,150.99,2.4504]
[1718174937541,0.34,151.01,150.98,2.4505]
[1718174937841,2.6201,151.01,150.98,2.4505]
[1718174938044,0.17,151.01,150.98,2.4505]
[1718174938827,0.17,151.01,150.99,2.4504]
[1718174939439,0.17,151.01,150.98,10.8505]
[1718174939615,2.6202,151.01,150.97,10.8507]
[1718174941051,2.4504,150.99,150.95,2.4511]
[1718174941227,2.4504,150.99,150.95,8.4]
[1718174941430,2.7904,151.0,150.96,2.4509]
[1718174941928,2.7904,151.0,150.97,2.4508]
[1718174942128,0.34,151.0,150.97,2.4508]
[1718174942450,0.34,151.0,150.97,10.8508]
[1718174943641,0.17,151.01,150.98,2.4505]
[1718174946342,0.17,151.0,150.97,2.4507]
[1718174946661,0.17,150.98,150.96,2.4508]
[1718174946844,0.51,150.99,150.96,10.8508]
[1718174947559,0.51,150.99,150.96,2.4508]
[1718174950149,0.51,150.99,150.97,2.4508]
[1718174950350,0.17,150.98,150.96,2.4509]
[1718174951746,0.17,150.98,150.97,2.4508]
[1718174952462,0.17,150.98,150.92,12.2575]
[1718174952662,2.6207,150.98,150.94,2.4512]
[1718174952859,0.51,150.97,150.94,2.4512]
[1718174953870,0.51,150.97,150.95,2.4511]
[1718174954340,0.51,150.97,150.94,2.4512]
[1718174954838,0.51,150.97,150.95,2.4511]
[1718174955963,0.51,150.97,150.96,2.4509]
[1718174956197,0.68,150.97,150.96,2.4509]
[1718174956344,0.17,150.98,150.97,2.4507]
[1718174956539,0.17,150.98,150.94,4.9024]
[1718174956862,0.17,150.98,150.96,2.4509]
[1718174958439,0.17,150.98,150.95,2.451]
[1718174960469,0.17,150.98,150.96,2.4509]
[1718174961051,0.17,150.98,150.95,2.451]
[1718174962081,2.6206,150.98,150.95,2.451]
[1718174962368,0.17,150.97,150.95,2.451]
[1718174962947,0.34,150.98,150.95,2.451]
[1718174963759,2.7906,150.98,150.95,2.451]
[1718174964271,0.34,150.98,150.95,2.451]
[1718174964471,0.34,150.98,150.94,10.8512]
[1718174964660,2.7907,150.98,150.94,10.8512]
[1718174965974,2.7907,150.98,150.95,2.4511]
[1718174966568,2.7907,150.98,150.92,4.9031]
[1718174966569,0.34,150.97,150.93,2.4513]
[1718174966772,0.34,150.97,150.93,10.8513]
[1718174966773,0.17,150.96,150.93,10.8513]
[1718174967074,2.7909,150.97,150.94,2.4512]
[1718174967458,2.7909,150.97,150.93,10.8513]
[1718174967661,0.34,150.97,150.93,8.4]
[1718174967965,0.34,150.98,150.95,2.451]
[1718174968157,2.7906,150.98,150.95,2.451]
[1718174968359,2.7906,150.98,150.94,2.4512]
[1718174968668,2.7908,150.97,150.94,2.4512]
[1718174969057,0.34,150.97,150.94,2.4512]
[1718174973256,0.34,150.97,150.94,8.4]
[1718174973464,0.34,150.97,150.94,2.4512]
[1718174973661,0.34,150.97,150.94,10.8512]
[1718174976280,0.34,150.97,150.94,2.4512]
[1718174977652,0.17,150.96,150.93,2.4513]
[1718174977859,0.34,150.96,150.93,10.8513]
[1718174978072,0.34,150.96,150.93,2.4513]
[1718174978575,2.4513,150.94,150.88,4.9043]
[1718174978762,2.4513,150.94,150.88,24.9043]
[1718174979077,2.4513,150.94,150.89,8.4]
[1718174979276,0.17,150.94,150.91,2.4517]
[1718174979571,0.34,150.94,150.91,2.4517]
[1718174980279,0.34,150.94,150.92,2.4516]
[1718174980573,0.34,150.93,150.91,2.4517]
[1718174980752,0.17,150.92,150.9,2.4518]
[1718174980951,0.34,150.92,150.9,2.4518]
[1718174981661,0.34,150.92,150.89,2.4521]
[1718174981662,0.17,150.9,150.89,2.4521]
[1718174981863,0.34,150.9,150.88,2.4522]
[1718174982065,0.17,150.9,150.89,2.4521]
[1718174982278,0.51,150.91,150.9,2.4519]
[1718174982482,10.8513,150.94,150.9,2.4519]
[1718174982669,0.68,150.93,150.9,2.4519]
[1718174982873,2.452,150.9,150.86,3.3098684]
[1718174983071,0.17,150.9,150.87,2.4524]
[1718174983271,0.68,150.9,150.87,2.4524]
[1718174985977,0.68,150.9,150.88,2.4522]
[1718174986170,0.68,150.9,150.86,0.8573684]
[1718174986171,0.17,150.92,150.9,2.4518]
[1718174986373,0.68,150.92,150.91,2.4517]
[1718174986592,0.68,150.92,150.9,2.4518]
[1718174986782,0.68,150.92,150.91,2.4517]
[1718174986971,15.7667,150.93,150.92,2.4516]
[1718174987463,15.7667,150.93,150.91,2.4517]
[1718174988470,0.34,150.92,150.88,4.9042]
[1718174988669,0.34,150.91,150.89,2.4521]
[1718174989060,0.17,150.9,150.89,2.4521]
[1718174990195,0.17,150.9,150.88,2.4522]
[1718174991581,0.34,150.9,150.88,2.4522]
[1718174992592,0.34,150.9,150.87,10.8523]
[1718174992791,0.51,150.89,150.87,10.8523]
[1718174992994,0.17,150.89,150.87,10.8523]
[1718174993190,0.17,150.89,150.86,0.8573684]
[1718174993395,8.91,150.89,150.86,0.8573684]
[1718174993601,0.34,150.88,150.86,0.8573684]
[1718174995615,0.51,150.87,150.86,0.8573684]
[1718174995770,0.34,150.88,150.86,3.3099684]
[1718174995977,0.17,150.88,150.86,3.3099684]
[1718174997074,0.17,150.88,150.86,0.8573684]
[1718174997879,0.17,150.88,150.86,3.3098684]
[1718174998201,0.17,150.88,150.86,0.8573684]
[1718174998404,11.0223,150.88,150.86,0.8573684]
[1718174998574,0.34,150.87,150.86,0.8573684]
[1718174998772,0.51,150.87,150.86,0.8573684]
[1718174998972,0.68,150.87,150.86,0.8573684]
[1718175000175,0.68,150.87,150.86,3.3099684]
[1718175000380,0.34,150.87,150.86,3.3099684]
[1718175001672,0.17,150.87,150.86,3.3099684]
[1718175002081,0.17,150.89,150.86,0.8573684]
[1718175002304,0.68,150.89,150.87,2.4524]
[1718175003704,0.68,150.89,150.87,2.4523]
[1718175003909,0.17,150.87,150.86,0.8573684]
[1718175004078,0.51,150.87,150.86,0.8573684]
[1718175004386,0.68,150.87,150.86,0.8573684]
[1718175005798,3.1324,150.87,150.86,0.8573684]
[1718175007001,0.68,150.87,150.86,0.8573684]
[1718175007687,11.5324,150.87,150.86,0.8573684]
[1718175009309,9.08,150.87,150.86,0.8573684]
[1718175010785,31.3924,150.87,150.86,0.8573684]
[1718175011097,76.3924,150.87,150.86,0.8573684]
[1718175011485,2.4527,150.85,150.82,2.453]
[1718175011696,0.68,150.84,150.82,2.453]
[1718175012804,0.68,150.84,150.81,2.4533]
[1718175012981,3.1329,150.84,150.81,2.4533]
[1718175013176,11.5329,150.84,150.8,2.4535]
[1718175013385,35.7411,150.88,150.79,9.8146]
[1718175013598,2.4527,150.85,150.81,2.4532]
[1718175013900,8.4,150.85,150.82,2.4532]
[1718175014689,0.17,150.84,150.82,2.4532]
[1718175014999,0.68,150.84,150.81,2.4533]
[1718175015186,2.6233,150.82,150.78,2.4538]
[1718175015383,0.17,150.8,150.78,2.4538]
[1718175015595,0.34,150.8,150.78,2.4538]
[1718175015800,0.17,150.79,150.78,2.4538]
[1718175017202,0.17,150.83,150.78,8.4]
[1718175017403,25.6902,150.88,150.83,4.9061]
[1718175017404,15.8811,150.88,150.83,4.9061]
[1718175017615,265.00195062,150.93,150.86,2.4525]
[1718175017616,2.4518,150.91,150.86,2.4525]
[1718175017792,2.4521,150.89,150.85,2.4526]
[1718175018102,2.4527,150.86,150.81,2.4533]
[1718175018308,2.4528,150.85,150.8,10.8535]
[1718175018486,2.4528,150.85,150.81,2.4533]
[1718175018893,2.4532,150.82,150.76,21.4127]
[1718175019095,2.4532,150.82,150.78,10.8537]
[1718175019096,0.17,150.81,150.78,10.8537]
[1718175019288,0.34,150.81,150.78,10.8537]
[1718175019493,0.34,150.82,150.79,2.4537]
[1718175019787,0.34,150.81,150.79,2.4537]
[1718175021708,0.34,150.81,150.78,2.4538]
[1718175021915,0.34,150.8,150.78,2.4538]
[1718175022689,8.74,150.79,150.72,4.9095]
[1718175022891,0.34,150.78,150.73,4.9093]
[1718175023107,0.34,150.79,150.76,8.4]
[1718175023293,0.34,150.79,150.77,8.4]
[1718175023496,0.34,150.79,150.77,2.4539]
[1718175025797,2.4529,150.85,150.78,13.3077]
[1718175025997,10.8529,150.85,150.8,2.4534]
[1718175026511,2.4529,150.84,150.79,2.4536]
[1718175026711,2.4529,150.84,150.8,2.4534]
[1718175027206,0.17,150.83,150.8,2.4534]
[1718175027405,0.68,150.83,150.8,2.4534]
[1718175027709,0.68,150.83,150.8,8.4]
[1718175028014,2.4528,150.85,150.82,2.4532]
[1718175028015,0.17,150.85,150.82,2.4532]
[1718175028210,16.6487,150.86,150.81,8.4]
[1718175028396,19.1013,150.86,150.82,2.4531]
[1718175028592,16.6487,150.86,150.83,2.453]
[1718175028798,2.4529,150.84,150.79,2.4536]
[1718175029114,2.4529,150.84,150.8,8.4]
[1718175029613,2.4529,150.84,150.79,8.4]
[1718175029911,2.4529,150.84,150.8,2.4534]
[1718175030687,11.5328,150.85,150.81,2.4534]
[1718175031923,3.1328,150.85,150.81,2.4534]
[1718175033113,3.1328,150.85,150.82,2.4532]
[1718175033114,0.68,150.85,150.82,2.4532]
[1718175033316,0.68,150.85,150.83,2.453]
[1718175033720,0.68,150.85,150.84,2.4529]
[1718175035518,0.68,150.85,150.83,2.453]
[1718175036817,0.68,150.85,150.82,10.8531]
[1718175037115,0.68,150.85,150.83,2.453]
[1718175038311,0.68,150.85,150.82,10.8531]
[1718175038924,2.453,150.83,150.79,2.4536]
[1718175039397,2.453,150.83,150.79,10.8536]
[1718175039595,2.453,150.84,150.79,10.8536]
[1718175039793,2.453,150.84,150.8,2.4535]
[1718175040917,9.08,150.85,150.8,2.4535]
[1718175040918,11.5328,150.85,150.8,2.4535]
[1718175041121,3.1328,150.85,150.81,2.4534]
[1718175041418,0.68,150.85,150.82,2.4532]
[1718175042319,3.1327,150.85,150.81,10.8533]
[1718175046314,0.68,150.85,150.81,10.8533]
[1718175046620,0.68,150.85,150.83,8.4]
[1718175047697,3.1327,150.85,150.82,10.8531]
[1718175047903,3.1327,150.85,150.82,8.4]
[1718175048100,2.4529,150.84,150.8,2.4535]
[1718175048312,2.453,150.84,150.81,8.4]
[1718175048710,3.1328,150.85,150.81,10.8534]
[1718175049599,2.4532,150.82,150.78,2.4537]
[1718175050224,2.4532,150.82,150.78,10.8537]
[1718175051202,3.1331,150.83,150.79,2.4537]
[1718175051402,3.1331,150.83,150.79,10.8537]
[1718175053112,2.4533,150.82,150.79,8.4]
[1718175053312,2.4533,150.82,150.78,10.8538]
[1718175053516,2.4533,150.82,150.79,8.4]
[1718175053825,3.1331,150.83,150.79,10.8536]
[1718175054203,0.17,150.81,150.78,2.4538]
[1718175054409,0.34,150.81,150.78,10.8538]
[1718175055712,0.34,150.81,150.79,2.4537]
[1718175055914,0.17,150.81,150.79,2.4537]
[1718175056128,0.34,150.81,150.79,2.4537]
[1718175057938,0.34,150.81,150.8,2.4535]
[1718175058230,0.68,150.81,150.8,2.4535]
[1718175060314,0.17,150.83,150.8,2.4535]
[1718175060516,0.68,150.83,150.81,2.4534]
[1718175061321,0.68,150.83,150.8,10.8534]
[1718175061836,0.68,150.83,150.8,2.4534]
[1718175062028,2.4532,150.82,150.79,8.4]
[1718175062231,3.1331,150.83,150.79,8.4]
[1718175062735,0.68,150.83,150.77,4.908]
[1718175063029,0.68,150.83,150.78,8.4]
[1718175063335,0.17,150.81,150.78,10.8538]
[1718175063634,0.68,150.81,150.78,2.4538]
[1718175064437,0.68,150.81,150.78,10.8538]
[1718175064937,0.68,150.81,150.79,2.4537]
[1718175065111,0.68,150.81,150.8,2.4535]
[1718175065316,0.17,150.84,150.81,2.4534]
[1718175065529,0.68,150.84,150.81,2.4534]
[1718175067325,16.2105,150.89,150.81,4.9067]
[1718175067517,2.4525,150.87,150.84,8.4]
[1718175067716,2.4523,150.88,150.84,2.4529]
[1718175068329,2.4524,150.87,150.83,10.853]
[1718175069345,2.7926,150.86,150.82,10.8531]
[1718175069718,2.7927,150.85,150.81,2.4533]
[1718175069926,2.7927,150.85,150.81,10.8533]
[1718175070130,0.17,150.83,150.8,2.4535]
[1718175070639,0.34,150.83,150.8,2.4535]
[1718175071436,0.34,150.83,150.81,2.4534]
[1718175074123,0.17,150.81,150.78,2.4538]
[1718175074322,0.34,150.81,150.78,2.4538]
[1718175075141,0.34,150.81,150.79,2.4537]
[1718175075321,0.34,150.82,150.8,2.4534]
[1718175075531,0.51,150.83,150.81,2.4534]
[1718175077744,0.51,150.83,150.8,10.8535]
[1718175078337,2.9631,150.83,150.8,2.4535]
[1718175078538,2.9631,150.83,150.79,10.8536]
[1718175080137,2.4532,150.82,150.79,8.4]
[1718175080315,0.68,150.81,150.79,8.4]
[1718175080515,0.68,150.81,150.78,10.8538]
[1718175081625,0.68,150.81,150.79,2.4537]
[1718175086453,0.68,150.81,150.76,6.0551]
[1718175086622,0.68,150.81,150.78,8.4]
[1718175086828,0.68,150.81,150.79,2.4537]
[1718175089327,0.68,150.81,150.8,2.4535]
[1718175093047,0.17,150.83,150.8,8.4]
[1718175093343,0.68,150.83,150.81,2.4533]
[1718175093849,0.68,150.83,150.82,2.4532]
[1718175094245,0.68,150.83,150.81,2.4533]
[1718175094547,32.3041,150.88,150.82,2.4532]
[1718175094730,15.1382,150.88,150.84,8.4]
[1718175095054,17.5904,150.88,150.85,8.4]
[1718175095235,17.5904,150.88,150.84,10.8528]
[1718175095953,2.4524,150.87,150.84,10.8528]
[1718175096139,0.17,150.86,150.84,10.8528]
[1718175096451,0.17,150.86,150.84,2.4528]
[1718175097934,0.68,150.87,150.84,2.4528]
[1718175098656,3.1324,150.87,150.84,2.4528]
[1718175098955,3.1324,150.87,150.83,10.853]
[1718175100255,3.1324,150.87,150.84,2.4529]
[1718175101454,0.68,150.87,150.84,2.4529]
[1718175102971,3.1324,150.87,150.84,2.4529]
[1718175105850,3.1324,150.87,150.83,2.453]
[1718175106281,3.1324,150.87,150.83,10.853]
[1718175107960,9.08,150.87,150.82,2.4531]
[1718175108277,2.4531,150.83,150.79,10.8536]
[1718175108461,2.793,150.84,150.8,2.4535]
[1718175108641,0.34,150.83,150.8,2.4535]
[1718175108841,2.7931,150.83,150.79,10.8536]
[1718175109041,2.7931,150.83,150.8,2.4535]
[1718175109259,0.34,150.83,150.8,2.4535]
[1718175109560,0.34,150.82,150.79,2.4536]
[1718175109745,0.34,150.81,150.79,2.4536]
[1718175111282,0.34,150.81,150.78,2.4538]
[1718175111564,0.34,150.81,150.79,2.4537]
[1718175112856,15.1382,150.88,150.76,6.0551]
[1718175113162,2.4525,150.87,150.83,2.4529]
[1718175113746,2.4526,150.86,150.83,2.4529]
[1718175114146,2.6225,150.87,150.83,2.4529]
[1718175114348,0.17,150.85,150.83,2.4529]
[1718175116551,0.17,150.85,150.82,10.8531]
[1718175117078,0.51,150.86,150.83,10.853]
[1718175118668,0.17,150.85,150.82,2.4532]
[1718175118864,0.51,150.85,150.82,10.8532]
[1718175120165,0.51,150.85,150.83,2.4529]
[1718175120374,0.17,150.86,150.84,2.4528]
[1718175120559,0.68,150.87,150.84,2.4528]
[1718175120752,3.1324,150.87,150.84,2.4528]
[1718175121251,8.91,150.87,150.81,8.4]
[1718175121470,0.17,150.85,150.82,2.4531]
[1718175121647,0.68,150.85,150.82,2.4531]
[1718175122168,0.68,150.85,150.83,2.453]
[1718175122559,2.4525,150.87,150.82,8.4]
[1718175122753,0.17,150.87,150.84,2.4528]
[1718175122958,3.1324,150.87,150.83,10.853]
[1718175124566,3.1324,150.87,150.84,2.4529]
[1718175124949,3.1324,150.87,150.83,10.8529]
[1718175125756,3.1324,150.87,150.83,2.4529]
[1718175126665,3.1324,150.87,150.84,2.4529]
[1718175126968,270.46,150.93,150.86,13.3051]
[1718175127271,254.8,150.93,150.92,2.4516]
[1718175127479,12.02,150.93,150.92,10.8516]
[1718175128472,18.1109,150.97,150.92,10.8516]
[1718175128678,2.451,150.96,150.92,10.8516]
[1718175129060,15.66,150.97,150.92,8.4]
[1718175129260,2.451,150.96,150.92,10.8515]
[1718175129984,2.4513,150.94,150.91,2.4517]
[1718175130154,2.4513,150.94,150.91,10.8517]
[1718175130359,0.17,150.93,150.9,10.8518]
[1718175130581,0.68,150.93,150.9,10.8518]
[1718175131567,0.68,150.93,150.91,2.4517]
[1718175132855,18.1108,150.97,150.93,2.4513]
[1718175133062,0.51,150.96,150.93,2.4513]
[1718175133262,0.17,150.95,150.93,2.4513]
[1718175133478,0.17,150.95,150.94,2.4513]
[1718175133859,0.17,150.95,150.93,2.4513]
[1718175138278,0.51,150.96,150.93,2.4513]
[1718175138279,16.1887,151.0,150.95,2.451]
[1718175138472,2.4505,150.99,150.95,2.451]
[1718175138884,18.6391,151.0,150.96,2.4509]
[1718175139388,29.4894,151.0,150.91,9.8069]
[1718175139582,2.4509,150.97,150.93,10.8513]
[1718175140497,0.17,150.96,150.93,10.8513]
[1718175141890,0.17,150.96,150.94,2.4512]
[1718175142392,0.17,150.97,150.94,2.4512]
[1718175142788,0.34,150.97,150.94,2.4512]
[1718175143569,0.34,150.97,150.95,2.451]
[1718175143979,0.34,150.98,150.96,2.4509]
[1718175144179,0.34,150.98,150.95,2.451]
[1718175144587,0.34,150.98,150.96,2.4509]
[1718175145675,0.34,150.99,150.96,2.4509]
[1718175145875,0.17,150.98,150.95,10.851]
[1718175146075,0.17,150.98,150.95,2.451]
[1718175146403,0.17,150.98,150.96,2.4509]
[1718175146587,0.34,150.99,150.96,2.4509]
[1718175147697,2.7906,150.99,150.95,10.8511]
[1718175147997,0.17,150.97,150.94,10.8512]
[1718175148189,0.34,150.97,150.94,10.8512]
[1718175148903,0.34,150.97,150.95,2.4511]
[1718175149581,0.34,150.97,150.95,10.8511]
[1718175151405,0.17,150.97,150.95,10.8511]
[1718175151590,2.4505,150.99,150.96,2.4509]
[1718175152202,2.4505,150.99,150.95,2.451]
[1718175152502,2.4505,150.99,150.95,10.851]
[1718175152692,17.9276,151.02,150.98,2.4505]
[1718175152894,15.4776,151.08,151.01,8.4]
[1718175153100,15.4776,151.08,151.02,10.8499]
[1718175153101,2.4494,151.06,151.02,10.8499]
[1718175153280,23.8776,151.08,151.03,8.4]
[1718175153281,2.4492,151.07,151.03,8.4]
[1718175153479,2.4493,151.06,151.02,10.8499]
[1718175153983,23.8776,151.08,150.98,6.4893]
[1718175153984,2.4495,151.05,151.01,2.45]
[1718175154200,2.4495,151.05,151.01,10.85]
[1718175156502,0.17,151.05,151.02,2.4499]
[1718175156682,0.34,151.05,151.02,10.8499]
[1718175157074,0.34,151.05,151.02,2.4499]
[1718175157302,2.7895,151.05,151.01,10.85]
[1718175157907,0.34,151.06,151.02,10.8499]
[1718175158109,3.1293,151.07,151.03,2.4498]
[1718175158287,2.4493,151.06,151.02,10.8499]
[1718175158809,30.3568,151.07,150.98,6.4893]
[1718175158988,25.7169,151.05,150.97,16.6053]
[1718175159185,2.45,151.02,150.98,8.4]
[1718175159385,0.17,151.03,150.98,8.4]